Department Family,Entity,Date,Expense Type,Expense area,Supplier,Transaction Number,Amount in Sterling �s incl VAT ,Supplier VAT Registration number
NHS,Glos Hospitals NHS Foundation Trust,05/05/2021,Finished processed goods,Inventories,Roche Products Limited,000009-1,"35,711.70", 
NHS,Glos Hospitals NHS Foundation Trust,05/05/2021,Finished processed goods,Inventories,Qualasept Ltd t/a Bath ASU,000010-29,"33,868.80", 
NHS,Glos Hospitals NHS Foundation Trust,05/05/2021,Finished processed goods,Inventories,Novartis Pharmaceuticals UK Limited,000010-3,"38,465.28", 
NHS,Glos Hospitals NHS Foundation Trust,05/05/2021,Finished processed goods,Inventories,Bayer,000010-5,"27,373.68", 
NHS,Glos Hospitals NHS Foundation Trust,05/05/2021,Finished processed goods,Inventories,Bristol Myers Squibb Pharmaceuticals Limited,000010-6,"35,370.00", 
NHS,Glos Hospitals NHS Foundation Trust,05/05/2021,Finished processed goods,Inventories,Bristol Myers Squibb Pharmaceuticals Limited,000010-7,"41,074.80", 
NHS,Glos Hospitals NHS Foundation Trust,05/05/2021,Finished processed goods,Inventories,Roche Products Limited,000010-9,"69,131.62", 
NHS,Glos Hospitals NHS Foundation Trust,25/05/2021,Finished processed goods,Inventories,Roche Products Limited,000018-23,"87,414.91", 
NHS,Glos Hospitals NHS Foundation Trust,25/05/2021,Finished processed goods,Inventories,Roche Products Limited,000018-24,"44,927.64", 
NHS,Glos Hospitals NHS Foundation Trust,25/05/2021,Finished processed goods,Inventories,Alloga UK Limited,000018-87,"27,120.00", 
NHS,Glos Hospitals NHS Foundation Trust,25/05/2021,Finished processed goods,Inventories,Janssen Cilag Limited,000018-92,"53,913.60", 
NHS,Glos Hospitals NHS Foundation Trust,25/05/2021,Finished processed goods,Inventories,Qualasept Ltd t/a Bath ASU,000018-95,"50,053.68", 
NHS,Glos Hospitals NHS Foundation Trust,25/05/2021,Finished processed goods,Inventories,Qualasept Ltd t/a Bath ASU,000018-97,"50,053.68", 
NHS,Glos Hospitals NHS Foundation Trust,25/05/2021,Finished processed goods,Inventories,Novartis Pharmaceuticals UK Limited,000023-11,"38,465.28", 
NHS,Glos Hospitals NHS Foundation Trust,25/05/2021,Finished processed goods,Inventories,Novartis Pharmaceuticals UK Limited,00016A-2,"38,465.28", 
NHS,Glos Hospitals NHS Foundation Trust,25/05/2021,Finished processed goods,Inventories,Novartis Pharmaceuticals UK Limited,00016A-26,"39,815.28", 
NHS,Glos Hospitals NHS Foundation Trust,25/05/2021,Finished processed goods,Inventories,Bayer,00016A-28,"27,373.68", 
NHS,Glos Hospitals NHS Foundation Trust,25/05/2021,Finished processed goods,Inventories,Bayer,00016A-29,"27,373.68", 
NHS,Glos Hospitals NHS Foundation Trust,25/05/2021,Finished processed goods,Inventories,Bayer,00016A-3,"45,622.80", 
NHS,Glos Hospitals NHS Foundation Trust,25/05/2021,Finished processed goods,Inventories,Roche Products Limited,00016A-31,"74,352.01", 
NHS,Glos Hospitals NHS Foundation Trust,11/05/2021,Finished processed goods,Inventories,Bayer,28718-11,"63,871.92", 
NHS,Glos Hospitals NHS Foundation Trust,11/05/2021,Finished processed goods,Inventories,Celgene Limited,28718-12,"37,253.41", 
NHS,Glos Hospitals NHS Foundation Trust,11/05/2021,X-Ray Equipment : Maintenance,Radiography,Supply Chain Coordination Ltd - Maint. (201),840893,"52,504.37", 
NHS,Glos Hospitals NHS Foundation Trust,05/05/2021,X-Ray Equipment : Maintenance,Radiography,Philips UK and Ireland,840912,"29,832.00", 
NHS,Glos Hospitals NHS Foundation Trust,05/05/2021,Purchase Computers/Systems,Capital Project Control,Bytes Software Services Limited,841618,"60,791.09", 
NHS,Glos Hospitals NHS Foundation Trust,18/05/2021,Computer Hardware Purchases,IT Recharges,XMA Limited,841677,"28,559.32", 
NHS,Glos Hospitals NHS Foundation Trust,05/05/2021,Purchase Computers/Systems,Capital Project Control,XMA Limited,842074,"28,109.86", 
NHS,Glos Hospitals NHS Foundation Trust,11/05/2021,Medical & Surgical Equipment : Disposable,Urology Robot MSE,Intuitive Surgical,842211,"144,000.00", 
NHS,Glos Hospitals NHS Foundation Trust,11/05/2021,Furniture & Fittings,ELD - Expenditure,Hunters Contracts Ltd,842584,"39,676.63", 
NHS,Glos Hospitals NHS Foundation Trust,05/05/2021,Finished processed goods,Inventories,Bristol Myers Squibb Pharmaceuticals Limited,842748,"29,475.00", 
NHS,Glos Hospitals NHS Foundation Trust,05/05/2021,Commercial Sector,T&0 Specialty,University of Bristol,843361,"45,965.60", 
NHS,Glos Hospitals NHS Foundation Trust,05/05/2021,Medical & Surgical Equipment : General,Cytology - CGH,Chrystal Consulting Limited,843362,"-39,604.28", 
NHS,Glos Hospitals NHS Foundation Trust,11/05/2021,X-Ray Equipment : Maintenance,General Theatre 1 - Non Pay only,Supply Chain Coordination Ltd - Maint. (201),843376,"55,791.42", 
NHS,Glos Hospitals NHS Foundation Trust,05/05/2021,Rates,Rates - CGH,Cheltenham Borough Council,843509,"90,624.00", 
NHS,Glos Hospitals NHS Foundation Trust,05/05/2021,Rates,Rates - GRH,Gloucester City Council,843514,"209,920.00", 
NHS,Glos Hospitals NHS Foundation Trust,11/05/2021,Passthrough Drugs - High Cost Blood Products,Blood Products,Octapharma Limited,843577,"45,500.00", 
NHS,Glos Hospitals NHS Foundation Trust,05/05/2021,Sal Sacrifice Car Scheme,Pay Deductions,Tusker Direct,843613,"35,076.83", 
NHS,Glos Hospitals NHS Foundation Trust,07/05/2021,Other Transport Costs,Central CoVid Costs,Outdoor Medical Solutions,843625,"31,680.00", 
NHS,Glos Hospitals NHS Foundation Trust,25/05/2021,Computer Software / License  Fees,RISK,Datix Limited,843631,"47,124.00", 
NHS,Glos Hospitals NHS Foundation Trust,11/05/2021,Computer Software / License  Fees,Finance - Direct Reports,Dr Foster Ltd,843653,"34,995.60", 
NHS,Glos Hospitals NHS Foundation Trust,05/05/2021,Medical & Surgical Equip. : Finance & Op. Leases,Leases,Siemens Financial Services Limited,843804,"60,294.27", 
NHS,Glos Hospitals NHS Foundation Trust,05/05/2021,Finished processed goods,Inventories,Aah Pharmaceuticals Limited,843842,"39,495.54", 
NHS,Glos Hospitals NHS Foundation Trust,11/05/2021,Finished processed goods,Inventories,Aah Pharmaceuticals Limited,843847,"32,404.32", 
NHS,Glos Hospitals NHS Foundation Trust,05/05/2021,Purchase Computers/Systems,Capital Project Control,XMA Limited,843884,"47,548.00", 
NHS,Glos Hospitals NHS Foundation Trust,25/05/2021,Colour Connection,Payables - Manual,Colour Connection,844112,"47,991.47", 
NHS,Glos Hospitals NHS Foundation Trust,18/05/2021,All Other Expenditure,Capital Project Control,Vital Energi Solutions Ltd,844628,"414,781.78", 
NHS,Glos Hospitals NHS Foundation Trust,18/05/2021,Laboratory Radio-Isotopes,Nuclear Medicine,Curium Pharma UK Limited,844696,"1,097,613.60", 
NHS,Glos Hospitals NHS Foundation Trust,18/05/2021,Laboratory Radio-Isotopes,Nuclear Medicine,Curium Pharma UK Limited,844697,"-1,097,613.60", 
NHS,Glos Hospitals NHS Foundation Trust,11/05/2021,NHS Logistics control,Payables - Manual,Supply Chain Coordination Ltd - Consumables,844713,"73,857.01", 
NHS,Glos Hospitals NHS Foundation Trust,25/05/2021,External Consultancy Fees,Trustwide NR,KPMG LLP,844740,"171,810.00", 
NHS,Glos Hospitals NHS Foundation Trust,25/05/2021,All Other Expenditure,Capital Project Control,Vital Energi Solutions Ltd,844742,"888,401.59", 
NHS,Glos Hospitals NHS Foundation Trust,11/05/2021,Fresh Blood & Plasma Products,Blood Products,HA73961 NHS Blood & Transplant,844778,"72,092.51", 
NHS,Glos Hospitals NHS Foundation Trust,11/05/2021,Fresh Blood & Plasma Products,Blood Products,HA73961 NHS Blood & Transplant,844779,"59,681.76", 
NHS,Glos Hospitals NHS Foundation Trust,28/05/2021,Other Transport Costs,Patient Transport Services GHX,Outdoor Medical Solutions,844841,"30,240.00", 
NHS,Glos Hospitals NHS Foundation Trust,11/05/2021,MSE General,Capital Project Control,CMR Surgical Limited,844853,"1,317,600.00", 
NHS,Glos Hospitals NHS Foundation Trust,11/05/2021,Contractual Clinical Services,Renal Dialysis,B Braun Avitum UK Limited,844854,"126,820.90", 
NHS,Glos Hospitals NHS Foundation Trust,11/05/2021,Contractual Clinical Services,Renal Dialysis,B Braun Avitum UK Limited,844855,"180,382.41", 
NHS,Glos Hospitals NHS Foundation Trust,18/05/2021,Fresh Blood & Plasma Products,Blood Products,HA73961 NHS Blood & Transplant,845060,"72,092.51", 
NHS,Glos Hospitals NHS Foundation Trust,11/05/2021,Ded Cde 1 - Accom Dep,Pay Deductions,Sovereign Housing Assoc Limited,845061,"30,798.39", 
NHS,Glos Hospitals NHS Foundation Trust,25/05/2021,Building - External Contracts,Capital Project Control,AGITO Medical A/S,845081,"29,190.00", 
NHS,Glos Hospitals NHS Foundation Trust,25/05/2021,Commercial Sector,Theatre Admin GRH,Genmed.me Limited,845118,"-104,904.94", 
NHS,Glos Hospitals NHS Foundation Trust,25/05/2021,External Consultancy Fees,Strategy & Transformation,IDP Project Management (South) Limited,845124,"33,799.04", 
NHS,Glos Hospitals NHS Foundation Trust,25/05/2021,Sal Sacrifice Car Scheme,Pay Deductions,Tusker Direct,845296,"37,224.46", 
NHS,Glos Hospitals NHS Foundation Trust,25/05/2021,Commercial Sector,Main Theatre - Non Pay only,Genmed.me Limited,845435,"1,776,123.86", 
NHS,Glos Hospitals NHS Foundation Trust,18/05/2021,Building - External Contracts,Capital Project Control,Kier Infrastructure & Overseas Limited,845560,"147,737.94", 
NHS,Glos Hospitals NHS Foundation Trust,18/05/2021,Sal Sacrifice Car Scheme,Pay Deductions,Tusker Direct,845717,"35,209.84", 
NHS,Glos Hospitals NHS Foundation Trust,25/05/2021,External Data Contracts,Ophthalmology Fund,Medisoft Limited,845824,"30,000.00", 
NHS,Glos Hospitals NHS Foundation Trust,25/05/2021,Other Transport Costs,Patient Transport Services GHX,E-Zec Medical Transport Services Ltd,845930,"28,687.09", 
NHS,Glos Hospitals NHS Foundation Trust,25/05/2021,Other Transport Costs,Patient Transport Services GHX,E-Zec Medical Transport Services Ltd,845931,"28,687.09", 
NHS,Glos Hospitals NHS Foundation Trust,25/05/2021,Medical & Surgical Equipment : Disposable,CAPD Renal,Baxter Healthcare Limited,846078,"29,197.54", 
NHS,Glos Hospitals NHS Foundation Trust,21/05/2021,Clinical Negligence,Trustwide Finance,NHS Resolution,846645,"2,171,179.70", 
NHS,Glos Hospitals NHS Foundation Trust,25/05/2021,Contract : Other External,GHP Contract,Gloucester Healthcare Partnership Limited,846745,"564,656.28", 
NHS,Glos Hospitals NHS Foundation Trust,28/05/2021,Other Transport Costs,Patient Transport Services GHX,Outdoor Medical Solutions,846747,"27,840.00", 
NHS,Glos Hospitals NHS Foundation Trust,25/05/2021,Nursery Voucher Scheme,Pay Deductions,Wider Plan Limited,846748,"28,345.62", 
NHS,Glos Hospitals NHS Foundation Trust,25/05/2021,Lease Rents,Houses&Residences-CGH,Sovereign Housing Association Limited,846977,"37,162.03", 
NHS,Glos Hospitals NHS Foundation Trust,25/05/2021,Rent,Corporate CoVid,Saba Infra Gloucestershire Limited,847066,"70,457.40", 
NHS,Glos Hospitals NHS Foundation Trust,25/05/2021,Rent,Corporate CoVid,Saba Infra Gloucestershire Limited,847105,"77,866.20", 
NHS,Glos Hospitals NHS Foundation Trust,25/05/2021,Rent,Corporate CoVid,Saba Infra Gloucestershire Limited,847110,"74,521.80", 
